fUST/lending_fUST_20250916
["ID","MTS","AMOUNT","RATE_DAILY","PERIOD"]
[385757425,1758019847539,-480.0,0.00021917,2]
[385757426,1758019847548,-480.0,0.00021917,2]
[385757427,1758019847557,-480.0,0.00021917,2]
[385757428,1758019847566,-480.0,0.00021917,2]
[385757429,1758019847576,-320.56131991,0.00021917,2]
[385757430,1758019847585,-480.0,0.00021917,2]
[385757431,1758019847594,-489.21318306,0.00021917,2]
[385757432,1758019847604,-480.0,0.00021917,2]
[385757433,1758019847613,-480.0,0.00021917,2]
[385757434,1758019847622,-506.08141664,0.00021917,2]
[385757435,1758019847631,-480.0,0.00021917,2]
[385757436,1758019847640,-480.0,0.00021917,2]
[385757437,1758019847649,-921.03,0.00021917,2]
[385757438,1758019847658,-480.0,0.00021917,2]
[385757439,1758019847675,-541.71,0.00021917,2]
[385757440,1758019847684,-621.88,0.00021917,2]
[385757441,1758019847693,-335.13517526,0.00021917,2]
[385757442,1758019847705,-144.86482474,0.00021917,2]
[385757443,1758019847714,-480.0,0.00021917,2]
[385757444,1758019847723,-302.10346219,0.00021917,2]
[385757445,1758019847732,-480.0,0.00021917,2]
[385757446,1758019847741,-480.0,0.00021917,2]
[385757447,1758019847751,-480.0,0.00021917,2]
[385757448,1758019847760,-480.0,0.00021917,2]
[385757449,1758019847769,-1300.67,0.00021917,2]
[385757450,1758019847778,-480.0,0.00021917,2]
[385757451,1758019847787,-480.0,0.00021917,2]
[385757452,1758019847796,-480.0,0.00021917,2]
[385757453,1758019847805,-480.0,0.00021917,2]
[385757454,1758019847814,-2746.35,0.00021917,2]
[385757455,1758019847823,-480.0,0.00021917,2]
[385757456,1758019847832,-171.20862004,0.00021917,2]
[385757457,1758019847841,-480.0,0.00021917,2]
[385757458,1758019847850,-492.83429582,0.00021917,2]
[385757459,1758019847860,-480.0,0.00021917,2]
[385757460,1758019847869,-1328.73,0.00021917,2]
[385757461,1758019847879,-480.0,0.00021917,2]
[385757462,1758019847888,-480.0,0.00021917,2]
[385757463,1758019847897,-1476.45,0.00021917,2]
[385757464,1758019847906,-579.84,0.00021917,2]
[385757465,1758019847915,-500.0,0.00021973,2]
[385757466,1758019847925,-500.0,0.00021973,2]
[385757467,1758019847934,-503.27858316,0.00021973,2]
[385757468,1758019847943,-500.0,0.00021973,2]
[385757469,1758019847952,-160.17021146,0.00021973,2]
[385757470,1758019847962,-500.0,0.00021973,2]
[385757471,1758019847973,-433.57024684,0.00021973,2]
[385757472,1758019847982,-500.0,0.00021973,2]
[385757473,1758019847991,-320.69210904,0.00021973,2]
[385757474,1758019848012,-179.30789096,0.00021973,2]
[385757475,1758019848022,-172.0,0.00022014,2]
[385757476,1758019848031,-172.0,0.00022029,2]
[385757477,1758019848040,-152.023701,0.00022039,7]
[385757478,1758019848050,-805.0,0.00022039,2]
[385757479,1758019848059,-151.0,0.00022039,2]
[385757480,1758019848069,-176.13619277,0.00022039,2]
[385757481,1758019848078,-251.0,0.00022039,2]
[385757482,1758019848087,-160.99424439,0.00022039,2]
[385757483,1758019848096,-151.0,0.00022039,2]
[385757484,1758019848106,-210.0,0.00022039,2]
[385757485,1758019848115,-172.0,0.0002204,2]
[385757486,1758019848124,-1811.64006626,0.00022091,2]
[385757487,1758019848136,-985.93387408,0.00022091,2]
[385757488,1758019848146,-151.0,0.00022111,7]
[385757489,1758019848155,-160.40748888,0.00022111,2]
[385757490,1758019848164,-501.08608259,0.00022173,2]
[385757491,1758019848174,-292.02255446,0.00022173,2]
[385757508,1758020372194,480.0,0.00030149,50]
[385757509,1758020498271,-299.019904,0.00020868,2]
[385757510,1758020498306,-168.0,0.00021375,2]
[385757511,1758020498340,-168.0,0.00021472,2]
[385757512,1758020498503,-480.0,0.00021742,7]
[385757513,1758020498532,-300.0,0.00021815,2]
[385757514,1758020498560,-847.61663983,0.00021816,2]
[385757515,1758020498691,-5474.73691234,0.00021816,2]
[385757516,1758020498723,-10000.01,0.00021816,2]
[385757517,1758020498736,-10000.01,0.00021816,2]
[385757518,1758020498754,-10000.01,0.00021816,2]
[385757519,1758020498819,-10000.01,0.00021816,2]
[385757520,1758020498942,-10000.01,0.00021816,2]
[385757521,1758020499072,-10000.01,0.00021816,2]
[385757522,1758020499196,-10000.01,0.00021816,2]
[385757523,1758020499327,-10000.01,0.00021816,2]
[385757524,1758020499477,-10000.01,0.00021816,2]
[385757525,1758020499571,-10000.01,0.00021816,2]
[385757526,1758020499702,-10000.01,0.00021816,2]
[385757527,1758020499815,-10000.01,0.00021816,2]
[385757528,1758020499966,-4809.39415064,0.00021816,2]
[385757529,1758020499994,-111.7371174,0.00021817,2]
[385757530,1758020500026,-157.74746392,0.00021817,2]
[385757531,1758020500106,-160.0,0.00021821,2]
[385757532,1758020500136,-417.15472785,0.00021821,2]
[385757533,1758020500164,-500.0,0.00021873,2]
[385757534,1758020500192,-500.97793304,0.00021873,2]
[385757535,1758020500219,-500.0,0.00021873,2]
[385757536,1758020500246,-500.0,0.00021873,2]
[385757537,1758020500273,-500.0,0.00021873,2]
[385757538,1758020500301,-150.0,0.00021873,2]
[385757539,1758020500329,-500.0,0.00021873,2]
[385757540,1758020500357,-501.40480871,0.00021873,2]
[385757541,1758020500387,-500.0,0.00021873,2]
[385757542,1758020500416,-36.49938663,0.00021873,2]
[385757543,1758020500626,-467.93628754,0.00021816,2]
[385757544,1758020701893,159.7597994,0.00027342,30]
[385757545,1758020702092,159.7597994,0.00027644,30]
[385757546,1758020702190,159.7597994,0.00027918,30]
[385757547,1758020746653,-5000.0,0.00020956,2]
[385757548,1758020746686,-0.01,0.0002099,2]
[385757549,1758020746813,-10000.01,0.0002099,2]
[385757550,1758020746944,-10000.01,0.0002099,2]
[385757551,1758020747061,-10000.01,0.0002099,2]
[385757552,1758020747189,-10000.01,0.0002099,2]
[385757553,1758020756617,-10000.01,0.0002099,2]
[385757554,1758020766637,-4205.40787439,0.0002078,2]
[385757555,1758020766678,-1589.19425122,0.0002099,2]
[385757557,1758020830165,-1320.85150424,0.0002099,2]
[385757603,1758021032011,-272.980004,0.00020715,2]
[385757604,1758021032020,-1113.11982464,0.0002078,2]
[385757605,1758021032033,-1023.19047742,0.0002078,2]
[385757612,1758021037787,-2863.68969794,0.0002078,2]
[385757613,1758021037797,-1227.27265707,0.0002099,2]
[385757614,1758021037806,-215.58766508,0.00021673,2]
[385757615,1758021037815,-300.0,0.00021713,2]
[385757616,1758021037824,-1200.0,0.00021713,2]
[385757617,1758021037834,-1200.0,0.00021714,2]
[385757618,1758021037843,-48328.57800594,0.00021715,2]
[385757619,1758021037852,-211.58979839,0.00021715,2]
[385757620,1758021037861,-165.89687451,0.00021715,2]
[385757621,1758021037871,-588.62094257,0.00021715,2]
[385757622,1758021037881,-588.62094257,0.00021715,2]
[385757624,1758021037890,-588.62094257,0.00021715,2]
[385757626,1758021037900,-588.62094257,0.00021715,2]
[385757627,1758021037911,-588.62094257,0.00021715,2]
[385757628,1758021037921,-588.62094257,0.00021715,2]
[385757629,1758021037930,-588.62094257,0.00021715,2]
[385757630,1758021037939,-588.62094257,0.00021715,2]
[385757631,1758021037948,-588.62094257,0.00021715,2]
[385757632,1758021037957,-588.62094257,0.00021715,2]
[385757633,1758021037966,-588.62094257,0.00021715,2]
[385757634,1758021037975,-588.62094257,0.00021715,2]
[385757635,1758021037984,-588.62094257,0.00021715,2]
[385757636,1758021037993,-588.62094257,0.00021715,2]
[385757637,1758021038002,-588.62094257,0.00021715,2]
[385757638,1758021038011,-588.62094257,0.00021715,2]
[385757639,1758021038020,-588.62094257,0.00021715,2]
[385757640,1758021038029,-588.62094257,0.00021715,2]
[385757641,1758021038038,-588.62094257,0.00021715,2]
[385757642,1758021038047,-588.62094257,0.00021715,2]
[385757643,1758021038056,-635.71061797,0.00021715,2]
[385757644,1758021038065,-635.71061797,0.00021715,2]
[385757645,1758021038074,-635.71061797,0.00021715,2]
[385757646,1758021038083,-635.71061797,0.00021715,2]
[385757647,1758021038092,-635.71061797,0.00021715,2]
[385757648,1758021038101,-635.71061797,0.00021715,2]
[385757649,1758021038110,-635.71061797,0.00021715,2]
[385757650,1758021038119,-635.71061797,0.00021715,2]
[385757651,1758021038129,-635.71061797,0.00021715,2]
[385757652,1758021038138,-180413.31165411,0.00021716,2]
[385757653,1758021038147,-500.0,0.00021773,2]
[385757654,1758021038156,-500.0,0.00021773,2]
[385757655,1758021038165,-500.0,0.00021773,2]
[385757656,1758021038174,-500.0,0.00021773,2]
[385757657,1758021038183,-500.0,0.00021773,2]
[385757658,1758021038193,-500.0,0.00021773,2]
[385757659,1758021038202,-500.0,0.00021773,2]
[385757660,1758021038212,-500.0,0.00021773,2]
[385757661,1758021038221,-467.93628754,0.00021773,2]
[385757662,1758021038230,-500.0,0.00021773,2]
[385757663,1758021038240,-500.0,0.00021773,2]
[385757664,1758021038250,-500.0,0.00021773,2]
[385757665,1758021038259,-150.0,0.00021773,2]
[385757666,1758021038269,-500.0,0.00021773,2]
[385757667,1758021038278,-215.58766504,0.00021778,2]
[385757668,1758021038291,-1000.0,0.00021817,2]
[385757669,1758021038300,-1954.71664021,0.00021817,2]
[385757670,1758021038309,-847.61663983,0.0002182,2]
[385757671,1758021038318,-500.0,0.00021873,2]
[385757672,1758021038327,-215.58766504,0.00021882,2]
[385757673,1758021038337,-19275.71360577,0.00021904,2]
[385757674,1758021038346,-300.0,0.0002191,2]
[385757675,1758021038355,-166.001,0.00021911,2]
[385757676,1758021038364,-160.0,0.00021914,2]
[385757677,1758021038374,-160.0,0.00021914,2]
[385757678,1758021038383,-233.29513139,0.00021914,2]
[385757679,1758021038392,-217.86301978,0.00021914,2]
[385757680,1758021038401,-160.0,0.00021914,2]
[385757681,1758021038410,-182.05775671,0.00021917,2]
[385757682,1758021038419,-418.25998395,0.00021917,2]
[385757683,1758021038427,-480.0,0.00021917,2]
[385757684,1758021038437,-339.16259916,0.00021917,2]
[385757685,1758021038446,-480.0,0.00021917,2]
[385757686,1758021038455,-480.0,0.00021917,2]
[385757687,1758021038464,-480.0,0.00021917,2]
[385757688,1758021038473,-353.82444023,0.00021917,2]
[385757689,1758021038482,-480.0,0.00021917,2]
[385757690,1758021038491,-480.0,0.00021917,2]
[385757691,1758021038500,-480.0,0.00021917,2]
[385757692,1758021038509,-480.0,0.00021917,2]
[385757693,1758021038518,-480.0,0.00021917,2]
[385757694,1758021038527,-480.0,0.00021917,2]
[385757695,1758021038537,-480.0,0.00021917,2]
[385757696,1758021038546,-480.0,0.00021917,2]
[385757697,1758021038555,-480.0,0.00021917,2]
[385757698,1758021038564,-480.0,0.00021917,2]
[385757699,1758021038573,-1008.78895401,0.00021917,2]
[385757700,1758021038582,-482.49499634,0.00021917,2]
[385757701,1758021038591,-480.0,0.00021917,2]
[385757702,1758021038600,-562.7850367,0.00021917,2]
[385757703,1758021038611,-480.0,0.00021917,2]
[385757704,1758021038624,-480.0,0.00021917,2]
[385757705,1758021038634,-480.0,0.00021917,2]
[385757706,1758021038645,-480.0,0.00021917,2]
[385757707,1758021038656,-480.0,0.00021917,2]
[385757708,1758021038667,-289.73301689,0.00021917,2]
[385757709,1758021038678,-484.74316602,0.00021917,2]
[385757710,1758021038690,-76.83912314,0.00021917,2]
[385757711,1758021038710,-403.16087686,0.00021917,2]
[385757712,1758021038719,-480.0,0.00021917,2]
[385757713,1758021038731,-480.0,0.00021917,2]
[385757714,1758021038741,-500.0,0.00021917,2]
[385757715,1758021038751,-500.0,0.00021917,2]
[385757716,1758021038760,-500.0,0.00021917,2]
[385757717,1758021038769,-500.0,0.00021917,2]
[385757718,1758021038778,-466.71691938,0.00021917,2]
[385757731,1758021039941,-33.28308062,0.00021917,2]
[385757732,1758021039951,-428.69220189,0.00021917,2]
[385757733,1758021039960,-480.0,0.00021917,2]
[385757734,1758021039969,-480.0,0.00021917,2]
[385757735,1758021039978,-480.0,0.00021917,2]
[385757736,1758021039987,-480.0,0.00021917,2]
[385757737,1758021040089,-482.25027888,0.00021917,2]
[385757738,1758021040098,-480.0,0.00021917,2]
[385757739,1758021040109,-480.0,0.00021917,2]
[385757740,1758021040118,-480.0,0.00021917,2]
[385757741,1758021040128,-480.0,0.00021917,2]
[385757742,1758021040136,-483.24192962,0.00021917,2]
[385757743,1758021040145,-480.0,0.00021917,2]
[385757744,1758021040155,-485.250563,0.00021917,2]
[385757745,1758021040164,-480.0,0.00021917,2]
[385757746,1758021040174,-486.20780924,0.00021917,2]
[385757747,1758021040183,-480.0,0.00021917,2]
[385757748,1758021040193,-480.0,0.00021917,2]
[385757749,1758021040202,-480.0,0.00021917,2]
[385757750,1758021040211,-481.92792012,0.00021917,2]
[385757751,1758021040221,-237.15224498,0.00021917,2]
[385757752,1758021040230,-483.32653246,0.00021917,2]
[385757753,1758021040240,-480.0,0.00021917,2]
[385757754,1758021040250,-480.0,0.00021917,2]
[385757755,1758021040260,-480.0,0.00021917,2]
[385757756,1758021040270,-495.38111269,0.00021917,2]
[385757757,1758021040279,-480.0,0.00021917,2]
[385757758,1758021040288,-481.4946808,0.00021917,2]
[385757759,1758021040298,-480.0,0.00021917,2]
[385757760,1758021040307,-480.0,0.00021917,2]
[385757761,1758021040316,-483.51119109,0.00021917,2]
[385757762,1758021040327,-480.0,0.00021917,2]
[385757763,1758021040337,-480.0,0.00021917,2]
[385757764,1758021040346,-486.0558196,0.00021917,2]
[385757765,1758021040356,-483.13286196,0.00021917,2]
[385757766,1758021040365,-482.04729801,0.00021917,2]
[385757767,1758021040375,-482.92858031,0.00021917,2]
[385757768,1758021040384,-480.0,0.00021917,2]
[385757769,1758021040397,-484.97539738,0.00021917,2]
[385757770,1758021040407,-484.07864859,0.00021917,2]
[385757771,1758021040416,-480.0,0.00021917,2]
[385757772,1758021040425,-485.6882988,0.00021917,2]
[385757773,1758021040435,-484.48548333,0.00021917,2]
[385757774,1758021040444,-480.0,0.00021917,2]
[385757775,1758021040453,-481.0335211,0.00021917,2]
[385757776,1758021040462,-480.0,0.00021917,2]
[385757777,1758021040470,-480.0,0.00021917,2]
[385757778,1758021040479,-480.0,0.00021917,2]
[385757779,1758021040488,-480.0,0.00021917,2]
[385757780,1758021040499,-482.96352197,0.00021917,2]
[385757781,1758021040508,-482.63868831,0.00021917,2]
[385757782,1758021040517,-480.0,0.00021917,2]
[385757783,1758021040527,-509.1031612,0.00021917,2]
[385757784,1758021040536,-480.0,0.00021917,2]
[385757785,1758021040546,-481.81084392,0.00021917,2]
[385757786,1758021040557,-480.0,0.00021917,2]
[385757787,1758021040567,-480.0,0.00021917,2]
[385757788,1758021040578,-480.0,0.00021917,2]
[385757789,1758021040588,-480.0,0.00021917,2]
[385757790,1758021040597,-482.80728571,0.00021917,2]
[385757791,1758021040609,-480.0,0.00021917,2]
[385757792,1758021040621,-480.0,0.00021917,2]
[385757793,1758021040630,-483.88451281,0.00021917,2]
[385757794,1758021040639,-489.11563356,0.00021917,2]
[385757795,1758021040651,-599.01461938,0.00021917,2]
[385757796,1758021040663,-480.0,0.00021917,2]
[385757797,1758021040674,-480.0,0.00021917,2]
[385757798,1758021040684,-480.0,0.00021917,2]
[385757799,1758021040694,-480.0,0.00021917,2]
[385757800,1758021040704,-480.0,0.00021917,2]
[385757801,1758021040715,-480.0,0.00021917,2]
[385757802,1758021040724,-481.36521539,0.00021917,2]
[385757803,1758021040733,-585.63268744,0.00021917,2]
[385757804,1758021040743,-480.0,0.00021917,2]
[385757805,1758021040755,-480.0,0.00021917,2]
[385757806,1758021040764,-480.0,0.00021917,2]
[385757807,1758021040773,-494.40594533,0.00021917,2]
[385757808,1758021040782,-482.3690989,0.00021917,2]
[385757809,1758021040792,-480.0,0.00021917,2]
[385757810,1758021040801,-480.0,0.00021917,2]
[385757811,1758021040810,-480.0,0.00021917,2]
[385757812,1758021040819,-480.0,0.00021917,2]
[385757813,1758021040828,-480.0,0.00021917,2]
[385757814,1758021040837,-526.1355758,0.00021917,2]
[385757815,1758021040846,-480.0,0.00021917,2]
[385757816,1758021040855,-480.0,0.00021917,2]
[385757817,1758021040864,-480.0,0.00021917,2]
[385757818,1758021040873,-480.0,0.00021917,2]
[385757819,1758021040883,-288.30913272,0.00021917,2]
[385757820,1758021040893,-480.0,0.00021917,2]
[385757821,1758021040902,-480.0,0.00021917,2]
[385757822,1758021040911,-480.0,0.00021917,2]
[385757823,1758021040920,-480.0,0.00021917,2]
[385757824,1758021040930,-480.0,0.00021917,2]
[385757825,1758021040939,-480.0,0.00021917,2]
[385757826,1758021040949,-480.0,0.00021917,2]
[385757827,1758021040959,-480.0,0.00021917,2]
[385757828,1758021040970,-480.0,0.00021917,2]
[385757829,1758021040980,-151.0,0.00021917,2]
[385757830,1758021040991,-483.72615192,0.00021917,2]
[385757831,1758021041003,-480.0,0.00021917,2]
[385757832,1758021041012,-1008.10669318,0.00021917,2]
[385757833,1758021041022,-480.0,0.00021917,2]
[385757834,1758021041033,-480.57638995,0.00021917,2]
[385757835,1758021041043,-480.0,0.00021917,2]
[385757836,1758021041052,-480.0,0.00021917,2]
[385757837,1758021041061,-480.0,0.00021917,2]
[385757838,1758021041070,-480.0,0.00021917,2]
[385757839,1758021041080,-480.0,0.00021917,2]
[385757840,1758021041089,-480.0,0.00021917,2]
[385757841,1758021041098,-480.0,0.00021917,2]
[385757842,1758021041107,-480.0,0.00021917,2]
[385757843,1758021041117,-480.0,0.00021917,2]
[385757844,1758021041126,-480.0,0.00021917,2]
[385757845,1758021041136,-480.0,0.00021917,2]
[385757846,1758021041145,-481.80877657,0.00021917,2]
[385757847,1758021041154,-480.0,0.00021917,2]
[385757848,1758021041163,-480.0,0.00021917,2]
[385757849,1758021041172,-484.79043356,0.00021917,2]
[385757850,1758021041182,-480.0,0.00021917,2]
[385757851,1758021041191,-480.0,0.00021917,2]
[385757852,1758021041200,-480.0,0.00021917,2]
[385757853,1758021041209,-480.0,0.00021917,2]
[385757854,1758021041218,-480.0,0.00021917,2]
[385757855,1758021041227,-482.03190762,0.00021917,2]
[385757856,1758021041236,-500.0,0.00021917,2]
[385757857,1758021041245,-480.0,0.00021917,2]
[385757858,1758021041255,-480.0,0.00021917,2]
[385757859,1758021041264,-480.0,0.00021917,2]
[385757860,1758021041275,-480.0,0.00021917,2]
[385757861,1758021041283,-480.0,0.00021917,2]
[385757862,1758021041294,-480.0,0.00021917,2]
[385757863,1758021041304,-483.78966484,0.00021917,2]
[385757864,1758021041314,-484.47153492,0.00021917,2]
[385757865,1758021041323,-166.072294,0.00021917,2]
[385757866,1758021041332,-480.0,0.00021917,2]
[385757867,1758021041341,-480.0,0.00021917,2]
[385757868,1758021041350,-482.65432704,0.00021917,2]
[385757869,1758021041362,-480.0,0.00021917,2]
[385757870,1758021041372,-480.0,0.00021917,2]
[385757871,1758021041383,-480.0,0.00021917,2]
[385757872,1758021041392,-480.0,0.00021917,2]
[385757873,1758021041402,-480.0,0.00021917,2]
[385757874,1758021041411,-481.1977836,0.00021917,2]
[385757875,1758021041420,-482.52437463,0.00021917,2]
[385757876,1758021041430,-480.0,0.00021917,2]
[385757877,1758021041439,-480.0,0.00021917,2]
[385757878,1758021041448,-480.0,0.00021917,2]
[385757879,1758021041458,-480.0,0.00021917,2]
[385757880,1758021041467,-480.0,0.00021917,2]
[385757881,1758021041477,-480.0,0.00021917,2]
[385757882,1758021041486,-480.0,0.00021917,2]
[385757883,1758021041495,-272.00591444,0.00021917,2]
[385757884,1758021041505,-480.0,0.00021917,2]
[385757885,1758021041515,-480.0,0.00021917,2]
[385757886,1758021041525,-480.0,0.00021917,2]
[385757887,1758021041535,-480.0,0.00021917,2]
[385757888,1758021041545,-484.05652145,0.00021917,2]
[385757889,1758021041554,-480.0,0.00021917,2]
[385757890,1758021041563,-554.44326287,0.00021917,2]
[385757891,1758021041574,-480.0,0.00021917,2]
[385757892,1758021041583,-484.21849521,0.00021917,2]
[385757893,1758021041592,-480.0,0.00021917,2]
[385757894,1758021041601,-480.0,0.00021917,2]
[385757895,1758021041614,-480.0,0.00021917,2]
[385757896,1758021041624,-484.17612769,0.00021917,2]
[385757897,1758021041634,-482.52040208,0.00021917,2]
[385757898,1758021041643,-480.0,0.00021917,2]
[385757899,1758021041653,-480.0,0.00021917,2]
[385757900,1758021041662,-480.0,0.00021917,2]
[385757901,1758021041671,-480.0,0.00021917,2]
[385757902,1758021041681,-484.42157553,0.00021917,2]
[385757903,1758021041692,-480.0,0.00021917,2]
[385757904,1758021041701,-480.0,0.00021917,2]
[385757905,1758021041710,-480.0,0.00021917,2]
[385757906,1758021041719,-420.89275223,0.00021917,2]
[385757907,1758021041728,-480.0,0.00021917,2]
[385757908,1758021041737,-480.0,0.00021917,2]
[385757909,1758021041746,-480.0,0.00021917,2]
[385757910,1758021041755,-480.0,0.00021917,2]
[385757911,1758021041765,-480.0,0.00021917,2]
[385757912,1758021041774,-480.0,0.00021917,2]
[385757913,1758021041784,-480.0,0.00021917,2]
[385757914,1758021041793,-480.0,0.00021917,2]
[385757915,1758021041803,-480.0,0.00021917,2]
[385757916,1758021041813,-480.0,0.00021917,2]
[385757917,1758021041823,-480.0,0.00021917,2]
[385757918,1758021041833,-480.0,0.00021917,2]
[385757919,1758021041842,-480.0,0.00021917,2]
[385757920,1758021041851,-480.0,0.00021917,2]
[385757921,1758021041860,-480.0,0.00021917,2]
[385757922,1758021041869,-500.0,0.00021917,2]
[385757923,1758021041879,-483.29541244,0.00021917,2]
[385757924,1758021041890,-467.21272143,0.00021917,2]
[385757925,1758021041899,-480.0,0.00021917,2]
[385757926,1758021041908,-480.0,0.00021917,2]
[385757927,1758021041918,-273.30173689,0.00021917,2]
[385757928,1758021041927,-480.0,0.00021917,2]
[385757929,1758021041937,-480.0,0.00021917,2]
[385757930,1758021041946,-480.0,0.00021917,2]
[385757931,1758021041956,-172.328786,0.00021917,2]
[385757932,1758021041965,-480.0,0.00021917,2]
[385757933,1758021041974,-480.0,0.00021917,2]
[385757934,1758021041983,-480.0,0.00021917,2]
[385757935,1758021041993,-480.0,0.00021917,2]
[385757936,1758021042002,-480.0,0.00021917,2]
[385757937,1758021042011,-480.0,0.00021917,2]
[385757938,1758021042021,-480.0,0.00021917,2]
[385757939,1758021042110,-151.0,0.00021917,2]
[385757940,1758021042120,-480.0,0.00021917,2]
[385757941,1758021042130,-480.0,0.00021917,2]
[385757942,1758021042140,-480.0,0.00021917,2]
[385757943,1758021042150,-516.16557565,0.00021917,2]
[385757944,1758021042160,-480.0,0.00021917,2]
[385757945,1758021042169,-482.3977131,0.00021917,2]
[385757946,1758021042179,-279.329457,0.00021917,2]
[385757947,1758021042190,-482.68260293,0.00021917,2]
[385757948,1758021042199,-151.0,0.00021917,2]
[385757949,1758021042209,-480.0,0.00021917,2]
[385757950,1758021042218,-484.17243284,0.00021917,2]
[385757951,1758021042228,-484.93249293,0.00021917,2]
[385757952,1758021042237,-486.74745696,0.00021917,2]
[385757953,1758021042247,-482.3792918,0.00021917,2]
[385757954,1758021042256,-480.0,0.00021917,2]
[385757955,1758021042265,-480.0,0.00021917,2]
[385757956,1758021042274,-480.0,0.00021917,2]
[385757957,1758021042284,-480.0,0.00021917,2]
[385757958,1758021042293,-480.0,0.00021917,2]
[385757959,1758021042302,-480.0,0.00021917,2]
[385757960,1758021042311,-480.0,0.00021917,2]
[385757961,1758021042321,-478.63015756,0.00021917,2]
[385757962,1758021042330,-483.55505761,0.00021917,2]
[385757963,1758021042339,-484.02819979,0.00021917,2]
[385757964,1758021042349,-451.71159134,0.00021917,2]
[385757965,1758021042358,-480.0,0.00021917,2]
[385757966,1758021042368,-483.40268465,0.00021917,2]
[385757967,1758021042378,-480.0,0.00021917,2]
[385757968,1758021042387,-480.0,0.00021917,2]
[385757969,1758021042396,-484.57671862,0.00021917,2]
[385757970,1758021042407,-480.0,0.00021917,2]
[385757971,1758021042417,-151.0,0.00021917,2]
[385757972,1758021042426,-488.68903083,0.00021917,2]
[385757973,1758021042436,-480.0,0.00021917,2]
[385757974,1758021042445,-480.0,0.00021917,2]
[385757975,1758021042455,-480.0,0.00021917,2]
[385757976,1758021042464,-482.46797648,0.00021917,2]
[385757977,1758021042473,-500.0,0.00021917,2]
[385757978,1758021042483,-481.87786509,0.00021917,2]
[385757979,1758021042492,-500.0,0.00021917,2]
[385757980,1758021042502,-500.0,0.00021917,2]
[385757981,1758021042512,-480.0,0.00021917,2]
[385757982,1758021042522,-363.3,0.00021917,2]
[385757983,1758021042532,-480.76117594,0.00021917,2]
[385757984,1758021042542,-480.0,0.00021917,2]
[385757985,1758021042550,-481.08458678,0.00021917,2]
[385757986,1758021042560,-151.0,0.00021917,2]
[385757988,1758021042569,-480.0,0.00021917,2]
[385757990,1758021042578,-482.06254794,0.00021917,2]
[385757991,1758021042588,-480.0,0.00021917,2]
[385757992,1758021042597,-483.32305913,0.00021917,2]
[385757993,1758021042606,-480.0,0.00021917,2]
[385757994,1758021042620,-480.0,0.00021917,2]
[385757995,1758021042631,-482.48717329,0.00021917,2]
[385757996,1758021042640,-480.0,0.00021917,2]
[385757997,1758021042651,-482.78451072,0.00021917,2]
[385757998,1758021042661,-480.0,0.00021917,2]
[385757999,1758021042671,-151.0,0.00021917,2]
[385758000,1758021042680,-181.37072202,0.00021917,2]
[385758001,1758021042692,-482.56578371,0.00021917,2]
[385758002,1758021042702,-481.29995695,0.00021917,2]
[385758003,1758021042712,-151.0,0.00021917,2]
[385758004,1758021042722,-480.0,0.00021917,2]
[385758005,1758021042732,-480.0,0.00021917,2]
[385758006,1758021042742,-151.0,0.00021917,2]
[385758007,1758021042751,-151.0,0.00021917,2]
[385758008,1758021042760,-481.66980913,0.00021917,2]